bitfinex-derivatives/quotes_SOLF0:USTF0_20260204
["timestamp","ask_amount","ask_price","bid_price","bid_amount"]
[1770196656376,9.2912,97.006,96.952,256.25838576]
[1770196656578,9.2912,97.006,96.953,77.84446531]
[1770196657374,9.2912,97.006,96.955,77.84446531]
[1770196657668,144.5008,97.026,96.955,77.84446531]
[1770196657867,144.5053,97.023,96.955,77.84446531]
[1770196658068,9.2911,97.008,96.955,77.84446531]
[1770196658268,144.5147,97.017,96.955,77.84446531]
[1770196659479,9.2917,97.001,96.955,77.84446531]
[1770196659876,144.5257,97.01,96.955,77.84446531]
[1770196660379,9.2927,96.991,96.955,77.84446531]
[1770196662180,9.2918,97.0,96.955,77.84446531]
[1770196662679,9.2918,97.0,96.963,0.0651022]
[1770196663879,144.4908,97.033,96.963,77.84565618]
[1770196664081,144.4743,97.044,96.971,77.78055398]
[1770196664682,144.4801,97.04,96.971,77.78055398]
[1770196665779,181.76,97.056,96.906,77.68605299]
[1770196665978,144.6128,96.951,96.853,77.68605299]
[1770196666177,144.6128,96.951,96.852,144.7599]
[1770196666178,153.94,96.95,96.856,77.68605299]
[1770196666578,9.2979,96.936,96.871,9.3041]
[1770196666784,144.6243,96.943,96.856,77.68605299]
[1770196667078,9.3006,96.909,96.856,77.68605299]
[1770196667279,144.5926,96.965,96.891,77.8331706]
[1770196667484,183.02,96.964,96.891,77.8331706]
[1770196667680,9.2955,96.962,96.891,87.1353706]
[1770196667881,183.12,96.961,96.891,87.1353706]
[1770196668180,9.2958,96.958,96.891,87.1353706]
[1770196668688,183.3,96.963,96.891,77.8331706]
[1770196669690,183.3,96.963,96.864,144.7409]
[1770196669691,144.6437,96.93,96.835,77.59378816]
[1770196669878,144.6527,96.924,96.851,77.59378816]
[1770196670281,9.3006,96.908,96.851,77.59378816]
[1770196670580,144.6645,96.916,96.851,77.59378816]
[1770196670784,144.6661,96.915,96.851,77.59378816]
[1770196671178,9.3027,96.887,96.835,183.98]
[1770196671487,144.6997,96.893,96.833,77.66196149]
[1770196671681,9.3014,96.9,96.841,77.65263128]
[1770196671895,144.6386,96.934,96.841,77.65263128]
[1770196672185,183.94,96.935,96.84,8.49594487]
[1770196672186,144.6485,96.927,96.843,77.65263128]
[1770196672692,144.6298,96.94,96.861,76.65884789]
[1770196672876,144.671,96.912,96.824,76.65884789]
[1770196673080,144.684,96.903,96.824,76.65884789]
[1770196673277,144.684,96.903,96.823,184.86]
[1770196673278,144.6353,96.936,96.837,144.7812]
[1770196673482,144.6534,96.924,96.861,76.69139172]
[1770196673688,144.6696,96.913,96.862,185.3]
[1770196674082,9.3017,96.897,96.862,185.3]
[1770196674279,9.36804813,96.897,96.861,76.69139172]
[1770196674479,9.36804813,96.897,96.819,1.79637937]
[1770196674480,0.06634813,96.897,96.819,1.79637937]
[1770196674687,9.3026,96.887,96.821,76.81259463]
[1770196674885,9.3026,96.887,96.814,9.3096]
[1770196674886,9.3026,96.887,96.823,76.81259463]
[1770196675081,9.3015,96.899,96.831,76.81259463]
[1770196675294,144.6666,96.915,96.831,76.81259463]
[1770196675889,144.6051,96.956,96.89,8.49594487]
[1770196676091,144.6051,96.956,96.892,76.76496214]
[1770196676390,9.2966,96.95,96.892,76.76496214]
[1770196677585,9.2946,96.971,96.892,76.76496214]
[1770196677791,9.2946,96.971,96.891,186.06]
[1770196677792,9.2946,96.971,96.911,76.76243133]
[1770196678093,9.2946,96.971,96.891,186.06]
[1770196678094,144.6136,96.951,96.896,187.12]
[1770196678289,9.2978,96.937,96.897,187.18]
[1770196678590,144.6008,96.959,96.897,187.18]
[1770196678789,9.2957,96.959,96.898,76.89111493]
[1770196678990,9.2957,96.959,96.901,76.89111493]
[1770196679484,144.5292,97.007,96.901,76.89111493]
[1770196679485,9.2943,96.974,96.901,76.89111493]
[1770196680794,9.2957,96.959,96.901,76.89111493]
[1770196681189,9.2957,96.959,96.838,144.7797]
[1770196681190,144.6184,96.947,96.88,76.9116109]
[1770196681383,144.6184,96.947,96.882,76.9116109]
[1770196681586,144.604,96.957,96.882,76.9116109]
[1770196682395,144.604,96.957,96.87,8.49594487]
[1770196682396,9.2975,96.94,96.884,76.89951239]
[1770196683091,144.6385,96.934,96.87,8.49594487]
[1770196683394,144.6385,96.934,96.885,188.44]
[1770196683793,144.6393,96.933,96.874,188.6]
[1770196684192,9.2999,96.915,96.874,188.6]
[1770196684993,144.6521,96.925,96.865,76.73390853]
[1770196685193,0.06734624,96.904,96.866,91.38]
[1770196687596,0.06734624,96.904,96.866,168.17660012]
[1770196688099,144.6268,96.942,96.867,76.78501847]
[1770196688400,144.6421,96.931,96.869,76.78501847]
[1770196689398,144.6272,96.941,96.869,76.78501847]
[1770196689993,144.6399,96.933,96.869,76.78501847]
[1770196691496,144.6399,96.933,96.868,189.66]
[1770196691497,144.618,96.948,96.891,0.06675241]
[1770196691691,144.5982,96.961,96.891,0.06675241]
[1770196691692,144.6426,96.931,96.891,0.06675241]
[1770196692090,144.6426,96.931,96.88,76.95846446]
[1770196692496,144.6574,96.921,96.868,189.66]
[1770196693096,0.06557441,96.915,96.869,76.94831249]
[1770196693296,0.06557441,96.915,96.87,191.36]
[1770196693705,9.3011,96.903,96.87,191.36]
[1770196694302,0.06557441,96.915,96.87,191.36]
[1770196694303,144.6681,96.914,96.87,175.7201]
[1770196695003,9.301,96.904,96.87,175.7201]
[1770196696304,9.3002,96.913,96.871,76.90472633]
[1770196697999,144.6171,96.948,96.881,72.23892409]
[1770196698305,144.6301,96.939,96.881,72.23892409]
[1770196698605,144.6583,96.921,96.873,193.02]
[1770196698801,144.6583,96.921,96.872,193.02]
[1770196698998,144.6439,96.93,96.872,265.25153157]
[1770196699200,144.6439,96.93,96.872,72.23153157]
[1770196699394,144.6514,96.925,96.887,0.06655065]
[1770196699598,144.6552,96.923,96.887,0.06655065]
[1770196699902,144.6552,96.923,96.873,193.14]
[1770196700707,9.3009,96.905,96.873,193.14]
[1770196701207,9.3009,96.905,96.888,0.06606384]
[1770196703299,9.3016,96.898,96.888,0.06606384]
[1770196704808,9.3016,96.898,96.875,195.24]
[1770196705309,9.3016,96.898,96.874,195.38]
[1770196706009,9.3016,96.898,96.874,179.2109]
[1770196711014,9.3022,96.891,96.874,130.5748]
[1770196711309,0.06650053,96.903,96.856,197.62]
[1770196711907,144.6801,96.906,96.856,197.62]
[1770196712309,0.06694066,96.889,96.857,198.04]
[1770196713012,9.3037,96.876,96.857,198.04]
[1770196713214,0.06694066,96.889,96.852,182.1057]
[1770196713514,0.06694066,96.889,96.837,198.46]
[1770196713809,144.7398,96.866,96.79,8.52596591]
[1770196714014,144.7398,96.866,96.791,198.54]
[1770196714015,144.7516,96.858,96.791,198.54]
[1770196714213,144.7831,96.837,96.76,8.52596591]
[1770196714409,144.78,96.839,96.761,198.68]
[1770196714712,144.7883,96.834,96.761,198.68]
[1770196715315,144.7883,96.834,96.763,48.36091113]
[1770196715515,9.3087,96.824,96.763,48.36091113]
[1770196716213,9.3095,96.816,96.763,48.36091113]
[1770196716410,144.8018,96.825,96.763,48.36091113]
[1770196716606,144.8018,96.825,96.76,8.52596591]
[1770196716607,144.8023,96.824,96.765,48.17047482]
[1770196717012,144.7735,96.844,96.765,48.17047482]
[1770196717205,144.7772,96.841,96.765,48.17047482]
[1770196717817,194.36,96.858,96.764,199.36]
[1770196717818,9.3069,96.842,96.781,48.15900718]
[1770196718612,194.52,96.877,96.781,48.15900718]
[1770196718613,0.06589279,96.821,96.781,48.15900718]
[1770196719214,9.3091,96.82,96.781,48.15900718]
[1770196719411,9.3091,96.82,96.709,144.9729]
[1770196719412,0.06589279,96.821,96.768,200.06]
[1770196720109,9.3101,96.809,96.768,200.06]
[1770196720912,9.309,96.821,96.768,200.06]
[1770196721415,9.31,96.811,96.769,39.66373083]
[1770196722211,9.3109,96.801,96.769,39.66373083]
[1770196722415,9.3109,96.801,96.749,39.64856363]
[1770196723115,9.3109,96.801,96.751,39.60299247]
[1770196723509,9.3109,96.801,96.753,39.60299247]
[1770196724319,144.8252,96.809,96.753,39.60299247]
[1770196724518,144.8263,96.808,96.753,39.60299247]
[1770196724719,144.8335,96.803,96.753,39.60299247]
[1770196724917,9.3117,96.793,96.753,39.60299247]
[1770196725412,144.8113,96.818,96.768,0.06518827]
[1770196725618,9.3108,96.802,96.768,0.06518827]
[1770196726515,9.3118,96.791,96.768,0.06518827]
[1770196727517,144.795,96.829,96.768,39.64438215]
[1770196727712,144.7789,96.84,96.768,39.64438215]
[1770196727911,18.6102,96.861,96.768,39.64438215]
[1770196727912,195.54,96.879,96.791,39.56506807]
[1770196728415,144.7366,96.868,96.793,39.56506807]
[1770196729417,144.7489,96.86,96.793,39.56506807]
[1770196730216,144.7489,96.86,96.817,0.06561543]
[1770196730413,9.3072,96.84,96.817,0.06561543]
[1770196730914,9.3072,96.84,96.795,39.53366053]
[1770196732222,9.3081,96.83,96.795,39.53366053]
[1770196732728,144.7362,96.868,96.795,39.53366053]
[1770196733020,144.7059,96.889,96.795,39.53366053]
[1770196733021,144.7402,96.866,96.795,39.53366053]
[1770196733326,144.7574,96.854,96.795,39.53366053]
[1770196733527,144.7429,96.864,96.795,39.53366053]
[1770196733727,144.7452,96.862,96.795,39.53366053]
[1770196734624,9.3064,96.848,96.795,39.53366053]
[1770196734825,9.3064,96.848,96.801,34.77794679]
[1770196735531,9.3056,96.857,96.801,34.77794679]
[1770196735732,9.3056,96.857,96.803,34.76295497]
[1770196736127,9.3056,96.857,96.815,0.06536554]
[1770196736633,9.3056,96.857,96.815,34.82832051]
[1770196737129,9.3064,96.848,96.815,34.82832051]
[1770196737634,9.3064,96.848,96.815,34.76295497]
[1770196738033,9.3064,96.848,96.822,0.06547443]
[1770196739135,9.3055,96.858,96.822,0.06547443]
[1770196739332,144.7297,96.873,96.822,0.06547443]
[1770196739735,144.7059,96.889,96.822,0.06547443]
[1770196739736,9.306,96.852,96.822,0.06547443]
[1770196739931,9.306,96.852,96.815,34.76295497]
[1770196740336,9.306,96.852,96.827,0.06583149]
[1770196740935,144.6688,96.914,96.84,8.52596591]
[1770196741132,144.6568,96.922,96.842,34.6426352]
[1770196741329,197.26,96.941,96.861,34.6426352]
[1770196741537,9.3006,96.909,96.861,34.6426352]
[1770196742240,144.6124,96.951,96.881,34.62864216]
[1770196742538,144.6124,96.951,96.883,34.62864216]
[1770196742738,144.6124,96.951,96.885,34.58054512]
[1770196743129,197.42,96.979,96.864,34.58054512]
[1770196743130,144.6622,96.918,96.864,34.58054512]
[1770196743531,144.6204,96.946,96.871,34.5666907]
[1770196743736,144.6063,96.955,96.873,34.5666907]
[1770196743935,144.6162,96.949,96.873,34.5666907]
[1770196744541,9.2977,96.938,96.873,34.5666907]
[1770196744942,9.2977,96.938,96.875,34.36660836]
[1770196745336,9.2986,96.929,96.875,34.36660836]
[1770196745934,9.2975,96.941,96.897,0.06582187]
[1770196746143,9.2975,96.941,96.897,34.41803561]
[1770196746642,9.2975,96.941,96.899,34.35221374]
[1770196747340,631.7696,96.993,96.898,207.7]
[1770196747341,144.5363,97.002,96.931,36.40549591]
[1770196747544,144.5536,96.991,96.933,36.40549591]
[1770196747745,144.5558,96.989,96.933,36.40549591]
[1770196747938,9.2942,96.975,96.933,36.40549591]
[1770196748339,9.2942,96.975,96.952,0.06534328]
[1770196748540,9.2932,96.985,96.952,0.06534328]
[1770196749043,9.2922,96.996,96.952,0.06534328]
[1770196749247,144.5274,97.008,96.952,36.33300208]
[1770196749641,144.5636,96.984,96.931,36.2624047]
[1770196750341,144.5753,96.976,96.928,208.54]
[1770196750743,9.2955,96.962,96.928,208.54]
[1770196750942,9.2955,96.962,96.928,192.8137]
[1770196751144,144.5727,96.978,96.908,36.2624047]
[1770196751145,144.5873,96.968,96.908,36.2624047]
[1770196751344,9.2963,96.953,96.918,208.8]
[1770196753446,9.2963,96.953,96.909,209.44]
[1770196753946,9.2953,96.963,96.91,36.29960541]
[1770196754541,9.2942,96.975,96.91,36.29960541]
[1770196754742,9.2942,96.975,96.909,209.44]
[1770196754743,9.2942,96.975,96.921,36.33900323]
[1770196755844,0.06575221,96.958,96.921,36.33900323]
[1770196758448,9.2941,96.976,96.92,8.52596591]
[1770196758449,9.2941,96.976,96.923,36.35192885]
[1770196759851,144.504,97.024,96.941,36.33806688]
[1770196759852,9.2929,96.989,96.941,36.33806688]
[1770196760053,144.5119,97.019,96.943,36.33806688]
[1770196760650,9.292,96.998,96.943,36.33806688]
[1770196760852,144.525,97.01,96.943,36.33806688]
[1770196761350,9.2928,96.99,96.943,36.33806688]
[1770196761749,9.2936,96.982,96.943,36.33806688]
[1770196762048,9.2936,96.982,96.943,36.30796103]
[1770196762444,9.2936,96.982,96.953,0.06539378]
[1770196762952,9.2923,96.995,96.953,36.35592146]
[1770196763555,9.2913,97.005,96.953,36.29052768]
[1770196764150,9.2921,96.997,96.953,36.29052768]
[1770196764755,144.504,97.024,96.953,36.29052768]
[1770196764948,144.5089,97.021,96.953,36.29052768]
[1770196765553,144.4727,97.045,96.961,36.25914169]
[1770196765554,9.2901,97.018,96.961,36.25914169]
[1770196765748,144.5027,97.025,96.961,36.25914169]
[1770196766546,144.4881,97.035,96.961,36.25914169]
[1770196766749,144.4891,97.034,96.961,36.25914169]
[1770196766944,144.5032,97.025,96.983,0.06618925]
[1770196768355,9.2917,97.001,96.983,0.00043704]
[1770196769247,144.5042,97.024,96.983,0.00043704]
[1770196769452,144.5042,97.024,96.88,18.79296788]
[1770196769453,144.5265,97.009,96.951,212.94]
[1770196770459,9.2927,96.99,96.951,249.5816537]
[1770196771055,9.2917,97.001,96.952,36.55130333]
[1770196771949,9.2924,96.994,96.952,36.55130333]
[1770196772561,0.06497915,96.983,96.952,36.55130333]
[1770196773259,9.2916,97.002,96.952,36.55130333]
[1770196773465,9.2916,97.002,96.953,214.24]
[1770196774154,9.2916,97.002,96.954,36.54889418]
[1770196774761,9.2919,96.999,96.954,36.54889418]
[1770196777660,9.2926,96.992,96.954,36.54889418]
[1770196777861,9.2926,96.992,96.956,36.53103487]
[1770196778260,8.51296788,97.03,96.956,36.53103487]
[1770196778261,9.2934,96.984,96.956,36.53103487]
[1770196778462,9.2934,96.984,96.957,215.9]
[1770196779261,9.2934,96.984,96.957,252.43222615]
[1770196779464,9.2934,96.984,96.958,36.53222615]
[1770196780365,9.2934,96.984,96.959,151.58]
[1770196782064,9.294,96.977,96.954,216.94]
[1770196782464,144.5361,97.003,96.955,36.53656822]
[1770196782965,9.2928,96.989,96.955,36.53656822]
[1770196783166,9.2928,96.989,96.955,253.83656822]
[1770196783366,144.5362,97.002,96.955,253.83656822]
[1770196784766,9.2935,96.982,96.955,253.83656822]
[1770196785964,9.2938,96.98,96.94,36.64285]
[1770196786361,9.2938,96.98,96.941,218.28]
[1770196787471,144.5249,97.01,96.941,218.28]
[1770196787472,9.2929,96.988,96.942,36.63018611]
[1770196787972,9.2929,96.988,96.95,3.40590255]
[1770196788373,9.2936,96.982,96.942,36.63018611]
[1770196789573,9.2936,96.982,96.95,3.40590255]
[1770196790575,9.2941,96.976,96.95,3.40590255]
[1770196790768,9.2941,96.976,96.942,36.63018611]
[1770196791267,9.2941,96.976,96.941,218.28]
[1770196791268,9.2941,96.976,96.95,40.02819249]
[1770196792374,9.2941,96.976,96.95,260.56819249]
[1770196792574,9.2941,96.976,96.95,257.16228994]
[1770196793281,0.06511212,96.992,96.94,3.40590255]
[1770196793475,3.40590255,97.0,96.867,144.7365]
[1770196793476,0.06511212,96.965,96.91,220.9]
[1770196793674,0.06511212,96.965,96.911,220.98]
[1770196793976,9.2971,96.945,96.911,220.98]
[1770196794573,9.2971,96.945,96.92,3.40590255]
[1770196795275,9.2971,96.945,96.92,32.05642733]
[1770196795777,9.2964,96.952,96.92,32.05642733]
[1770196796078,0.72718196,96.995,96.94,32.0538953]
[1770196796476,9.2941,96.976,96.941,221.86]
[1770196796676,9.2941,96.976,96.95,3.40590255]
[1770196797878,9.293,96.987,96.942,28.57512727]
[1770196798074,0.72718196,96.995,96.942,28.57512727]
[1770196799175,9.2943,96.973,96.942,28.57512727]
[1770196800179,9.2943,96.973,96.941,221.86]
[1770196800180,3.40590255,97.01,96.951,28.55269564]
[1770196800378,1.69060316,97.011,96.961,28.55269564]
[1770196800579,1.69060316,97.011,96.962,223.24]
[1770196801382,1.69060316,97.011,96.962,251.87975406]
[1770196802578,9.2927,96.99,96.962,251.87975406]
[1770196802784,1.69060316,97.011,96.962,251.87975406]
[1770196803081,1.69060316,97.011,96.963,28.64753074]
[1770196803688,9.292,96.998,96.963,28.64753074]
[1770196803984,9.292,96.998,96.962,224.18]
[1770196803985,2.08986294,97.043,96.991,28.64530604]
[1770196804190,2.08986294,97.043,97.0,3.40590255]
[1770196804386,9.2879,97.041,97.0,3.40590255]
[1770196804687,2.08986294,97.043,96.993,28.64530604]
[1770196804884,2.08986294,97.043,97.0,3.40590255]
[1770196805482,2.12536472,97.059,97.001,28.69832081]
[1770196805688,2.26934586,97.057,97.001,28.69832081]
[1770196805887,2.26934586,97.057,97.01,3.40590255]
[1770196806283,9.2885,97.035,97.01,3.40590255]
[1770196807486,18.5665,97.09,97.021,28.80748255]
[1770196807487,2.18575501,97.079,97.021,28.80748255]
[1770196807890,144.4501,97.06,97.018,221.10828255]
[1770196808090,9.2888,97.032,97.0,229.12590255]
[1770196808284,9.2888,97.032,97.0,3.40590255]
[1770196808485,9.2888,97.032,96.998,210.44]
[1770196808681,9.2888,97.032,96.993,210.44]
[1770196808883,9.2888,97.032,97.0,3.40590255]
[1770196809094,9.2888,97.032,96.993,210.44]
[1770196809095,9.2879,97.041,97.01,3.40590255]
[1770196809496,9.2879,97.041,97.02,3.40590255]
[1770196809691,27.03387511,97.064,97.02,3.40590255]
[1770196809692,9.287,97.05,97.02,3.40590255]
[1770196809891,27.03387511,97.079,97.03,3.40590255]
[1770196810689,9.2854,97.066,97.04,3.40590255]
[1770196810896,27.03387511,97.079,97.04,3.40590255]
[1770196811893,9.2844,97.077,97.04,3.40590255]
[1770196812194,9.2815,97.108,97.07,30.39694098]
[1770196812385,27.03387511,97.108,97.062,226.68]
[1770196812584,27.03387511,97.108,97.05,3.40590255]
[1770196812995,9.2829,97.094,97.05,3.40590255]
[1770196813193,9.2829,97.094,97.047,226.72]
[1770196813194,9.2829,97.094,97.06,3.40590255]
[1770196813384,9.2829,97.094,97.05,3.40590255]
[1770196813589,27.03387511,97.108,97.05,3.40590255]
[1770196813590,9.2836,97.085,97.05,3.40590255]
[1770196814289,9.2828,97.094,97.05,3.40590255]
[1770196814696,9.2828,97.094,97.047,226.72]
[1770196814697,9.2819,97.103,97.06,3.40590255]
[1770196814889,27.03387511,97.121,97.07,3.40590255]
[1770196815697,27.03387511,97.104,97.051,26.99103843]
[1770196815995,27.03387511,97.099,97.047,226.72]
[1770196816196,27.03387511,97.099,97.04,3.40590255]
[1770196817288,27.03387511,97.072,97.02,3.40590255]
[1770196817692,27.03387511,97.069,97.018,26.99103843]
[1770196817900,9.2859,97.062,97.012,128.94]
[1770196818096,36.31977511,97.062,97.012,128.94]
[1770196818291,27.03387511,97.059,97.002,26.99103843]
[1770196818798,9.2888,97.031,96.983,26.99103843]
[1770196819098,27.03387511,97.041,96.983,26.99103843]
[1770196820303,9.2896,97.023,96.983,26.99103843]
[1770196820696,9.292,96.998,96.926,9.2988]
[1770196820897,30.99303418,96.997,96.931,29.63214242]
[1770196821398,30.99303418,96.997,96.952,0.06507118]
[1770196821797,9.2927,96.991,96.952,0.06507118]
[1770196824206,9.2915,97.003,96.953,29.63214242]
[1770196824405,30.99303418,97.031,96.953,29.63214242]
[1770196824610,30.99303418,97.028,96.953,29.63214242]
[1770196824806,30.99303418,97.028,96.954,29.63214242]
[1770196825203,175.49883418,97.023,96.954,29.63214242]
[1770196825804,30.99303418,97.023,96.954,29.63214242]
[1770196826104,30.99303418,97.023,96.955,29.63214242]
[1770196827210,30.99303418,97.023,96.956,29.63214242]
[1770196830215,30.99303418,97.021,96.956,29.63214242]
[1770196830511,30.99303418,97.021,96.895,144.6956]
[1770196830512,30.99303418,96.996,96.921,29.63214242]
[1770196831314,30.99303418,96.974,96.921,29.63214242]
[1770196831514,30.99303418,96.974,96.916,229.44]
[1770196831812,30.99303418,96.974,96.916,259.07214242]
[1770196832917,30.99303418,96.974,96.917,29.63214242]
[1770196833612,30.99303418,96.974,96.922,9.2992]
[1770196834013,30.99303418,96.973,96.917,29.63214242]
[1770196834712,40.28643418,96.984,96.919,29.63214242]
[1770196834912,30.99303418,96.983,96.919,29.63214242]
[1770196835617,40.28673418,96.98,96.919,29.63214242]
[1770196835816,30.99303418,96.979,96.919,29.63214242]
[1770196838720,9.2939,96.978,96.919,29.63214242]
[1770196840213,9.2947,96.969,96.919,29.63214242]
[1770196840417,30.99303418,96.979,96.919,29.63214242]
[1770196841328,30.99303418,96.979,96.939,0.06501092]
[1770196841819,9.2957,96.96,96.939,0.06501092]
[1770196842525,9.2957,96.96,96.9,8.51238843]
[1770196842526,9.2965,96.951,96.904,29.63214242]
[1770196843927,40.29023418,96.944,96.892,29.63214242]
[1770196844317,30.99303418,96.944,96.892,29.63214242]
[1770196845227,0.06580155,96.928,96.892,29.63214242]
[1770196847426,0.06580155,96.928,96.893,9.302]
[1770196847625,0.06580155,96.928,96.894,29.63214242]
[1770196850719,0.06580155,96.928,96.896,9.3017]
[1770196850924,30.99303418,96.944,96.896,41.95504091]
[1770196852428,30.99303418,96.944,96.866,32.65334091]
[1770196852631,30.99303418,96.944,96.868,32.65334091]
[1770196852832,31.391924,96.938,96.868,32.65334091]
[1770196853034,31.391924,96.915,96.869,9.3043]
[1770196853622,31.391924,96.93,96.874,32.65334091]
[1770196853835,207.58,96.955,96.874,32.65334091]
[1770196854027,31.391924,96.945,96.883,32.65334091]
[1770196854727,31.391924,96.945,96.902,9.3011]
[1770196855134,31.391924,96.945,96.894,9.3019]
[1770196855834,31.391924,96.945,96.891,32.65334091]
[1770196856027,9.298,96.935,96.891,32.65334091]
[1770196856429,40.689924,96.935,96.891,32.65334091]
[1770196857231,9.2985,96.93,96.891,32.65334091]
[1770196857635,34.46812735,96.949,96.891,32.65334091]
[1770196858036,9.2974,96.942,96.891,32.65334091]
[1770196858236,34.46812735,96.941,96.891,32.65334091]
[1770196860637,34.46812735,96.975,96.907,32.6988569]
[1770196860840,34.46812735,96.975,96.909,32.6988569]
[1770196861034,9.2957,96.96,96.909,32.6988569]
[1770196861235,34.46812735,96.975,96.911,32.6988569]
[1770196861639,9.2961,96.955,96.911,32.6988569]
[1770196861834,34.46812735,96.96,96.891,32.6988569]
[1770196862035,34.46812735,96.96,96.892,237.74]
[1770196862239,9.2957,96.959,96.901,32.6988569]
[1770196862437,34.46812735,96.978,96.911,32.6988569]
[1770196862739,34.46812735,96.978,96.91,8.52132079]
[1770196862740,34.46812735,96.978,96.913,32.6988569]
[1770196863741,34.46812735,96.978,96.912,238.92]
[1770196863742,9.2949,96.968,96.916,32.6988569]
[1770196864343,9.2949,96.968,96.93,3.40629828]
[1770196864744,9.2949,96.968,96.932,0.06528009]
[1770196865340,9.2933,96.984,96.94,36.10515518]
[1770196865848,9.2923,96.995,96.95,3.40629828]
[1770196866845,9.2926,96.991,96.95,3.40629828]
[1770196867040,34.46812735,96.994,96.95,3.40629828]
[1770196867554,34.46812735,96.994,96.962,0.06539646]
[1770196868043,9.2911,97.007,96.962,0.06539646]
[1770196868247,34.46812735,97.007,96.962,0.06539646]
[1770196871346,34.46812735,97.003,96.962,0.06539646]
[1770196871551,34.46812735,97.019,96.97,3.40629828]
[1770196872853,34.46812735,97.017,96.971,9.2945]
[1770196874050,34.46812735,97.014,96.962,41.9941569]
[1770196874852,9.2914,97.005,96.952,9.2963]
[1770196875051,34.46812735,96.999,96.93,36.10515518]
[1770196875245,34.46812735,96.989,96.93,36.10515518]
[1770196875844,34.46812735,96.989,96.93,32.6988569]
[1770196876852,34.46812735,96.976,96.92,3.40629828]
[1770196877549,34.46812735,96.964,96.914,32.6988569]
[1770196878056,9.2962,96.954,96.914,32.6988569]
[1770196882162,9.297,96.946,96.914,32.6988569]
[1770196882361,0.06562432,96.944,96.914,32.6988569]
[1770196883868,0.06562432,96.944,96.879,144.7194]
[1770196883869,35.88197817,96.979,96.93,36.20926073]
[1770196884159,35.88197817,96.979,96.94,3.40749666]
[1770196884360,9.2949,96.968,96.94,3.40749666]
[1770196884559,9.2949,96.968,96.93,32.80176407]
[1770196884766,35.88197817,96.979,96.92,3.40749666]
[1770196885157,35.88197817,96.979,96.92,36.20926073]
[1770196885357,9.2964,96.952,96.92,36.20926073]
[1770196885960,9.2971,96.945,96.91,3.40749666]
[1770196887763,9.2963,96.953,96.91,3.40749666]
[1770196888259,35.88197817,96.932,96.89,3.40749666]
[1770196888459,35.88197817,96.932,96.875,32.80176407]
[1770196888661,35.88197817,96.929,96.875,32.80176407]
[1770196889666,9.3005,96.909,96.875,32.80176407]
[1770196890360,9.3005,96.909,96.86,3.40749666]
[1770196890361,9.3005,96.909,96.86,36.20926073]
[1770196890562,45.18247817,96.909,96.86,36.20926073]
[1770196892866,45.18247817,96.909,96.86,32.80176407]
[1770196893067,45.18247817,96.909,96.86,36.20926073]
[1770196894165,0.06632594,96.894,96.86,36.20926073]
[1770196895860,9.2997,96.917,96.87,36.20926073]
[1770196896061,144.5837,96.971,96.836,144.7826]
[1770196896062,35.88197817,96.938,96.9,3.40749666]
[1770196897168,35.88197817,96.938,96.878,32.80176407]
[1770196897568,9.2988,96.927,96.878,32.80176407]
[1770196898564,9.2988,96.927,96.88,3.40749666]
[1770196898772,45.18077817,96.927,96.88,3.40749666]
[1770196899072,144.6147,96.95,96.893,0.0652577]
[1770196899073,35.88197817,96.922,96.893,0.0652577]
[1770196899667,9.2995,96.92,96.893,0.0652577]
[1770196900273,35.88197817,96.922,96.893,0.0652577]
[1770196901772,35.88197817,96.949,96.893,0.0652577]
[1770196902278,35.88197817,96.928,96.893,0.0652577]
[1770196905375,35.88197817,96.947,96.9,3.40749666]
[1770196905677,35.88197817,96.947,96.895,32.80176407]
[1770196906075,35.88197817,96.938,96.883,32.80176407]
[1770196906679,45.17987817,96.936,96.884,9.3029]
[1770196906981,45.17987817,96.936,96.885,32.80176407]
[1770196907177,35.88197817,96.935,96.885,32.80176407]
[1770196907379,35.88197817,96.919,96.876,9.3036]
[1770196908173,35.88197817,96.919,96.867,32.80176407]
[1770196908974,45.18157817,96.919,96.867,32.80176407]
[1770196909173,35.88197817,96.918,96.867,32.80176407]
[1770196909885,35.88197817,96.918,96.87,3.40749666]
[1770196910284,9.2999,96.916,96.87,3.40749666]
[1770196911073,9.3005,96.909,96.87,3.40749666]